[Event "Early-Titled-Tuesday-Blitz-April-02-2024"]
[Site "Chess.com"]
[Date "2024.04.02"]
[Round "3"]
[White "MalyDominator"]
[Black "LLariMarc"]
[Result "1-0"]
[WhiteElo "2620"]
[BlackElo "2423"]
[TimeControl "180+1"]
[EndTime "8:27:30 PDT"]
[Termination "MalyDominator won by resignation"]

1. e4 {[%clk 0:03:00.9]} 1... e6 {[%clk 0:02:59.3]} 2. d4 {[%clk 0:03:00.8]}
2... d5 {[%clk 0:03:00.2]} 3. e5 {[%clk 0:03:01.4]} 3... c5 {[%clk 0:03:00]} 4.
c3 {[%clk 0:03:02.1]} 4... Bd7 {[%clk 0:02:59.3]} 5. Nf3 {[%clk 0:02:59.8]} 5...
Qb6 {[%clk 0:02:59.2]} 6. Bd3 {[%clk 0:02:50.8]} 6... Bb5 {[%clk 0:02:58.5]} 7.
dxc5 {[%clk 0:02:50.7]} 7... Bxc5 {[%clk 0:02:58.1]} 8. b4 {[%clk 0:02:51.4]}
8... Bxd3 {[%clk 0:02:33.1]} 9. Qxd3 {[%clk 0:02:50.2]} 9... Be7 {[%clk
0:02:30.3]} 10. O-O {[%clk 0:02:50.1]} 10... Nd7 {[%clk 0:02:25.2]} 11. a4
{[%clk 0:02:48.9]} 11... Rc8 {[%clk 0:02:24.7]} 12. Be3 {[%clk 0:02:48.6]} 12...
Qa6 {[%clk 0:02:06.9]} 13. Qxa6 {[%clk 0:02:36.7]} 13... bxa6 {[%clk 0:02:07.8]}
14. Bxa7 {[%clk 0:02:36.8]} 14... Bd8 {[%clk 0:02:00.4]} 15. a5 {[%clk
0:02:31.2]} 15... Ne7 {[%clk 0:01:43.7]} 16. Bd4 {[%clk 0:02:28]} 16... Nc6
{[%clk 0:01:40.9]} 17. Nbd2 {[%clk 0:02:26.6]} 17... Nxd4 {[%clk 0:01:31.7]} 18.
cxd4 {[%clk 0:02:26.4]} 18... O-O {[%clk 0:01:32.1]} 19. Nb3 {[%clk 0:02:23.4]}
19... Rc4 {[%clk 0:01:24.1]} 20. Nc5 {[%clk 0:02:23.5]} 20... Nb8 {[%clk
0:01:24.3]} 21. Rab1 {[%clk 0:02:19.8]} 21... Be7 {[%clk 0:01:19.9]} 22. Rfc1
{[%clk 0:02:16.2]} 22... Rxc1+ {[%clk 0:01:18.2]} 23. Rxc1 {[%clk 0:02:16.3]}
23... Rc8 {[%clk 0:01:17.3]} 24. Rb1 {[%clk 0:02:07]} 24... Kf8 {[%clk
0:01:16.2]} 25. Kf1 {[%clk 0:02:05.7]} 25... Ke8 {[%clk 0:01:16.1]} 26. Ke2
{[%clk 0:02:04.6]} 26... Bd8 {[%clk 0:01:03.7]} 27. Kd3 {[%clk 0:02:00.3]} 27...
Rc6 {[%clk 0:00:51.8]} 28. Nd2 {[%clk 0:01:58.1]} 28... Bc7 {[%clk 0:00:48.1]}
29. f4 {[%clk 0:01:57.4]} 29... Kd8 {[%clk 0:00:45.8]} 30. g4 {[%clk 0:01:55.2]}
30... Kc8 {[%clk 0:00:44.4]} 31. Nf3 {[%clk 0:01:52.1]} 31... h6 {[%clk
0:00:43.3]} 32. h4 {[%clk 0:01:51.1]} 32... g6 {[%clk 0:00:42.5]} 33. h5 {[%clk
0:01:47.8]} 33... gxh5 {[%clk 0:00:41.1]} 34. gxh5 {[%clk 0:01:48]} 34... Nd7
{[%clk 0:00:41.3]} 35. Rg1 {[%clk 0:01:45.5]} 35... Nxc5+ {[%clk 0:00:35.2]} 36.
dxc5 {[%clk 0:01:45.3]} 36... Bd8 {[%clk 0:00:35.5]} 37. Rg8 {[%clk 0:01:36.9]}
37... Rc7 {[%clk 0:00:35]} 38. Nd4 {[%clk 0:01:35.3]} 38... Kd7 {[%clk
0:00:34.3]} 39. Rh8 {[%clk 0:01:25.2]} 39... Bh4 {[%clk 0:00:24]} 40. Rxh6
{[%clk 0:01:23.3]} 40... Ke7 {[%clk 0:00:21.9]} 41. Rh8 {[%clk 0:01:15.8]} 41...
Bg3 {[%clk 0:00:18.3]} 42. Ne2 {[%clk 0:01:10.9]} 42... Be1 {[%clk 0:00:13.7]}
43. Rb8 {[%clk 0:01:09.9]} 43... f6 {[%clk 0:00:11.5]} 44. h6 {[%clk 0:01:08.6]}
44... fxe5 {[%clk 0:00:10.2]} 45. fxe5 {[%clk 0:01:08.3]} 45... Bg3 {[%clk
0:00:05.4]} 46. Nxg3 {[%clk 0:01:00.7]} 1-0

[Event "Early-Titled-Tuesday-Blitz-April-02-2024"]
[Site "Chess.com"]
[Date "2024.04.02"]
[Round "3"]
[White "NigiriSushies"]
[Black "SlavenPastar"]
[Result "1-0"]
[WhiteElo "2321"]
[BlackElo "2558"]
[TimeControl "180+1"]
[EndTime "8:27:30 PDT"]
[Termination "NigiriSushies won by checkmate"]

1. e4 {[%clk 0:03:00.9]} 1... b6 {[%clk 0:02:59.9]} 2. d4 {[%clk 0:03:00.9]}
2... Bb7 {[%clk 0:03:00.1]} 3. Nc3 {[%clk 0:03:01.8]} 3... e6 {[%clk 0:02:59.9]}
4. Nf3 {[%clk 0:03:02.4]} 4... Bb4 {[%clk 0:02:58.8]} 5. Bd3 {[%clk 0:03:03.3]}
5... Nf6 {[%clk 0:02:57.5]} 6. e5 {[%clk 0:03:00.4]} 6... Ne4 {[%clk 0:02:56.9]}
7. O-O {[%clk 0:02:57.4]} 7... Nxc3 {[%clk 0:02:56.6]} 8. bxc3 {[%clk
0:02:58.3]} 8... Bxc3 {[%clk 0:02:57.5]} 9. Rb1 {[%clk 0:02:58.8]} 9... Nc6
{[%clk 0:02:57.6]} 10. Be4 {[%clk 0:02:54.1]} 10... Qc8 {[%clk 0:02:08.3]} 11.
Rb3 {[%clk 0:02:26]} 11... Ba5 {[%clk 0:01:56.3]} 12. Ng5 {[%clk 0:02:14.3]}
12... Nd8 {[%clk 0:01:32.2]} 13. Bxh7 {[%clk 0:01:59.8]} 13... Bd5 {[%clk
0:01:24]} 14. Rh3 {[%clk 0:01:49.4]} 14... Qb7 {[%clk 0:01:19.5]} 15. Qg4 {[%clk
0:01:42.9]} 15... Nc6 {[%clk 0:01:15]} 16. Nxf7 {[%clk 0:01:36.2]} 16... Rf8
{[%clk 0:00:30.9]} 17. Bg6 {[%clk 0:01:28]} 17... Nxe5 {[%clk 0:00:16.1]} 18.
dxe5 {[%clk 0:00:35.5]} 18... Qc6 {[%clk 0:00:09.7]} 19. Nd6+ {[%clk 0:00:31.9]}
19... Kd8 {[%clk 0:00:08.5]} 20. Bg5+ {[%clk 0:00:28.9]} 20... Rf6 {[%clk
0:00:08.1]} 21. Bxf6+ {[%clk 0:00:15.9]} 21... gxf6 {[%clk 0:00:06.7]} 22. Rh8+
{[%clk 0:00:15.7]} 22... Ke7 {[%clk 0:00:07]} 23. Qh4 {[%clk 0:00:12.6]} 23...
Rf8 {[%clk 0:00:02.6]} 24. Qh7+ {[%clk 0:00:12.4]} 24... Rf7 {[%clk 0:00:01.6]}
25. Qxf7# {[%clk 0:00:12.5]} 1-0

[Event "Early-Titled-Tuesday-Blitz-April-02-2024"]
[Site "Chess.com"]
[Date "2024.04.02"]
[Round "3"]
[White "Itay121"]
[Black "ActorXu"]
[Result "0-1"]
[WhiteElo "2534"]
[BlackElo "2846"]
[TimeControl "180+1"]
[EndTime "8:27:36 PDT"]
[Termination "ActorXu won by checkmate"]

1. e4 {[%clk 0:03:00.9]} 1... c5 {[%clk 0:02:57.8]} 2. Nf3 {[%clk 0:02:59.6]}
2... Nc6 {[%clk 0:02:55.8]} 3. Bb5 {[%clk 0:02:58.8]} 3... g6 {[%clk 0:02:52.6]}
4. O-O {[%clk 0:02:56.6]} 4... Bg7 {[%clk 0:02:52.3]} 5. c3 {[%clk 0:02:56.7]}
5... e5 {[%clk 0:02:46.9]} 6. d3 {[%clk 0:02:53.4]} 6... Nge7 {[%clk 0:02:45.1]}
7. Be3 {[%clk 0:02:53.1]} 7... d6 {[%clk 0:02:44.7]} 8. Nbd2 {[%clk 0:02:53.6]}
8... a6 {[%clk 0:02:43.9]} 9. Ba4 {[%clk 0:02:52.8]} 9... O-O {[%clk 0:02:43.3]}
10. Qe2 {[%clk 0:02:41.3]} 10... h6 {[%clk 0:02:43.2]} 11. Rac1 {[%clk 0:02:36]}
11... Kh7 {[%clk 0:02:43.1]} 12. Bc2 {[%clk 0:02:11.6]} 12... Be6 {[%clk
0:02:37.1]} 13. Bb1 {[%clk 0:02:07.3]} 13... Rc8 {[%clk 0:02:33.7]} 14. Rfd1
{[%clk 0:02:04.2]} 14... b6 {[%clk 0:02:25.9]} 15. Nf1 {[%clk 0:02:02]} 15... d5
{[%clk 0:02:25]} 16. exd5 {[%clk 0:01:46.4]} 16... Nxd5 {[%clk 0:02:24.7]} 17.
d4 {[%clk 0:01:42.6]} 17... Nxe3 {[%clk 0:02:16.5]} 18. Nxe3 {[%clk 0:01:26.5]}
18... exd4 {[%clk 0:02:14.7]} 19. cxd4 {[%clk 0:01:22.4]} 19... Nxd4 {[%clk
0:02:13]} 20. Nxd4 {[%clk 0:01:19.5]} 20... cxd4 {[%clk 0:02:13.1]} 21. Rxc8
{[%clk 0:01:17]} 21... Qxc8 {[%clk 0:02:11.8]} 22. Nc2 {[%clk 0:01:07.5]} 22...
Rd8 {[%clk 0:02:10.6]} 23. Nb4 {[%clk 0:01:03]} 23... a5 {[%clk 0:02:06]} 24.
Nd3 {[%clk 0:01:01.7]} 24... Bg4 {[%clk 0:01:59.5]} 25. f3 {[%clk 0:01:00.9]}
25... Bf5 {[%clk 0:01:59.7]} 26. Qd2 {[%clk 0:00:57]} 26... Re8 {[%clk
0:01:55.4]} 27. a3 {[%clk 0:00:41]} 27... Re3 {[%clk 0:01:52.3]} 28. Nf2 {[%clk
0:00:36.3]} 28... Bxb1 {[%clk 0:01:41.7]} 29. Rxb1 {[%clk 0:00:37.2]} 29... Qe6
{[%clk 0:01:39.5]} 30. Ne4 {[%clk 0:00:24.8]} 30... f5 {[%clk 0:01:36.7]} 31.
Ng3 {[%clk 0:00:25.2]} 31... h5 {[%clk 0:01:30.5]} 32. Rd1 {[%clk 0:00:20.3]}
32... h4 {[%clk 0:01:24.9]} 33. Nf1 {[%clk 0:00:20.9]} 33... Re2 {[%clk
0:01:21.1]} 34. Qd3 {[%clk 0:00:20.9]} 34... Rxb2 {[%clk 0:01:14.5]} 35. f4
{[%clk 0:00:20.1]} 35... Qe4 {[%clk 0:01:12.8]} 36. Qh3 {[%clk 0:00:20.4]} 36...
Bf6 {[%clk 0:01:10]} 37. Rd3 {[%clk 0:00:13.5]} 37... Qe2 {[%clk 0:01:01.3]} 38.
Rf3 {[%clk 0:00:10]} 38... Rb1 {[%clk 0:00:55.7]} 39. a4 {[%clk 0:00:06.2]}
39... d3 {[%clk 0:00:53.6]} 40. g3 {[%clk 0:00:06.6]} 40... Qxf3 {[%clk
0:00:52.6]} 41. gxh4 {[%clk 0:00:04.4]} 41... Qxh3 {[%clk 0:00:52.2]} 42. Kh1
{[%clk 0:00:05]} 42... Rxf1# {[%clk 0:00:52.2]} 0-1

[Event "Early-Titled-Tuesday-Blitz-April-02-2024"]
[Site "Chess.com"]
[Date "2024.04.02"]
[Round "3"]
[White "francyIM"]
[Black "joksijoksi"]
[Result "1-0"]
[WhiteElo "2804"]
[BlackElo "2528"]
[TimeControl "180+1"]
[EndTime "8:27:36 PDT"]
[Termination "francyIM won by resignation"]

1. e4 {[%clk 0:02:38.8]} 1... c5 {[%clk 0:02:53.6]} 2. Nf3 {[%clk 0:02:35.5]}
2... e6 {[%clk 0:02:52]} 3. c3 {[%clk 0:02:31]} 3... Nf6 {[%clk 0:02:51.2]} 4.
e5 {[%clk 0:02:31.3]} 4... Nd5 {[%clk 0:02:51.6]} 5. d4 {[%clk 0:02:31.9]} 5...
cxd4 {[%clk 0:02:52.5]} 6. cxd4 {[%clk 0:02:32.6]} 6... d6 {[%clk 0:02:53.2]} 7.
a3 {[%clk 0:02:32.1]} 7... Be7 {[%clk 0:02:52.8]} 8. Bd3 {[%clk 0:02:32.2]} 8...
b6 {[%clk 0:02:47.5]} 9. Qe2 {[%clk 0:02:32.1]} 9... Bb7 {[%clk 0:02:47.5]} 10.
h4 {[%clk 0:02:31.6]} 10... h6 {[%clk 0:02:46.5]} 11. h5 {[%clk 0:02:28]} 11...
Nd7 {[%clk 0:02:44.2]} 12. Rh3 {[%clk 0:02:17.6]} 12... dxe5 {[%clk 0:02:41.1]}
13. dxe5 {[%clk 0:02:16.6]} 13... Nc5 {[%clk 0:02:39.2]} 14. Bc4 {[%clk
0:02:09.6]} 14... a6 {[%clk 0:02:35.3]} 15. b4 {[%clk 0:02:07.6]} 15... Na4
{[%clk 0:02:24.4]} 16. Bb3 {[%clk 0:02:03.9]} 16... Nac3 {[%clk 0:02:15.8]} 17.
Nxc3 {[%clk 0:02:02.9]} 17... Nxc3 {[%clk 0:02:16.7]} 18. Qd2 {[%clk 0:02:02.1]}
18... Ne4 {[%clk 0:02:13.6]} 19. Qxd8+ {[%clk 0:02:00.4]} 19... Rxd8 {[%clk
0:02:14.5]} 20. Be3 {[%clk 0:01:58.9]} 20... b5 {[%clk 0:02:14.4]} 21. Nd4
{[%clk 0:01:51.1]} 21... Bg5 {[%clk 0:02:05.5]} 22. Rd1 {[%clk 0:01:36.3]} 22...
Bxe3 {[%clk 0:01:56.1]} 23. Rxe3 {[%clk 0:01:37.2]} 23... Ke7 {[%clk 0:01:55.6]}
24. Bc2 {[%clk 0:01:34.5]} 24... Ng5 {[%clk 0:01:49.6]} 25. f4 {[%clk
0:01:32.9]} 25... Nh7 {[%clk 0:01:46.6]} 26. Rc3 {[%clk 0:01:24.5]} 26... Rd7
{[%clk 0:01:42.7]} 27. Nc6+ {[%clk 0:01:18.5]} 27... Bxc6 {[%clk 0:01:42.7]} 28.
Rxc6 {[%clk 0:01:17.6]} 28... f6 {[%clk 0:01:29.3]} 29. Rxd7+ {[%clk 0:01:13.7]}
29... Kxd7 {[%clk 0:01:28.9]} 30. Rxa6 {[%clk 0:01:13.6]} 30... fxe5 {[%clk
0:01:27.8]} 31. fxe5 {[%clk 0:01:13.4]} 31... Ng5 {[%clk 0:01:28.5]} 32. Bd3
{[%clk 0:01:09.9]} 32... Rb8 {[%clk 0:01:26.9]} 33. Ra7+ {[%clk 0:01:08.8]}
33... Kc6 {[%clk 0:01:26.8]} 34. Rxg7 {[%clk 0:01:08]} 34... Kd5 {[%clk
0:01:27.1]} 35. Rg6 {[%clk 0:01:02.9]} 35... Kd4 {[%clk 0:01:23.8]} 36. Ke2
{[%clk 0:01:01.8]} 36... Ra8 {[%clk 0:01:19.7]} 37. Rxh6 {[%clk 0:00:52.7]}
37... Rxa3 {[%clk 0:01:19.4]} 38. Rg6 {[%clk 0:00:49.2]} 38... Ra2+ {[%clk
0:01:12.6]} 39. Kf1 {[%clk 0:00:47.2]} 39... Ke3 {[%clk 0:00:51.9]} 40. Kg1
{[%clk 0:00:36.4]} 40... Ne4 {[%clk 0:00:40.9]} 41. Bxe4 {[%clk 0:00:35.1]}
41... Kxe4 {[%clk 0:00:41.8]} 42. h6 {[%clk 0:00:34]} 42... Ra8 {[%clk
0:00:40.6]} 43. Rxe6 {[%clk 0:00:33.2]} 43... Kf5 {[%clk 0:00:39.6]} 44. Rb6
{[%clk 0:00:33.1]} 44... Kxe5 {[%clk 0:00:39.1]} 45. Rxb5+ {[%clk 0:00:33.3]}
45... Kf4 {[%clk 0:00:37.9]} 46. Rh5 {[%clk 0:00:33]} 46... Kg4 {[%clk
0:00:33.9]} 47. Rh3 {[%clk 0:00:33]} 47... Rh8 {[%clk 0:00:34.4]} 48. h7 {[%clk
0:00:33.1]} 1-0

[Event "Early-Titled-Tuesday-Blitz-April-02-2024"]
[Site "Chess.com"]
[Date "2024.04.02"]
[Round "3"]
[White "ninguno46"]
[Black "trriinu"]
[Result "1-0"]
[WhiteElo "2580"]
[BlackElo "2299"]
[TimeControl "180+1"]
[EndTime "8:27:36 PDT"]
[Termination "ninguno46 won by checkmate"]

1. e4 {[%clk 0:03:00.9]} 1... d5 {[%clk 0:02:59.1]} 2. exd5 {[%clk 0:03:00.5]}
2... Qxd5 {[%clk 0:03:00]} 3. Nc3 {[%clk 0:02:59.7]} 3... Qd6 {[%clk 0:03:00.7]}
4. g3 {[%clk 0:02:59]} 4... Nf6 {[%clk 0:03:00.4]} 5. Bg2 {[%clk 0:02:59.2]}
5... Nc6 {[%clk 0:03:00.5]} 6. Nge2 {[%clk 0:02:59.1]} 6... Bg4 {[%clk
0:03:00.3]} 7. h3 {[%clk 0:02:58.3]} 7... Bh5 {[%clk 0:03:00.3]} 8. d3 {[%clk
0:02:56.4]} 8... e5 {[%clk 0:02:59.3]} 9. Be3 {[%clk 0:02:49]} 9... a6 {[%clk
0:02:56]} 10. Qd2 {[%clk 0:02:48.1]} 10... O-O-O {[%clk 0:02:56.3]} 11. O-O-O
{[%clk 0:02:42.8]} 11... Nd4 {[%clk 0:02:50.7]} 12. g4 {[%clk 0:02:41.8]} 12...
Bg6 {[%clk 0:02:49.1]} 13. f4 {[%clk 0:02:39.8]} 13... Nxe2+ {[%clk 0:02:38]}
14. Nxe2 {[%clk 0:02:38.5]} 14... exf4 {[%clk 0:02:16.7]} 15. Nxf4 {[%clk
0:02:32.9]} 15... Qb4 {[%clk 0:01:57.6]} 16. Qf2 {[%clk 0:02:18.6]} 16... Bd6
{[%clk 0:01:10.4]} 17. Rhf1 {[%clk 0:01:37.6]} 17... Rhe8 {[%clk 0:01:05.8]} 18.
Bd2 {[%clk 0:01:33.4]} 18... Qa4 {[%clk 0:01:05.1]} 19. Kb1 {[%clk 0:01:32.1]}
19... Qb5 {[%clk 0:00:48.6]} 20. g5 {[%clk 0:01:23.8]} 20... Bxf4 {[%clk
0:00:36.9]} 21. Bxf4 {[%clk 0:01:18]} 21... Nd5 {[%clk 0:00:33.5]} 22. Bxd5
{[%clk 0:00:48.2]} 22... Rxd5 {[%clk 0:00:32.4]} 23. Qa7 {[%clk 0:00:41.3]}
23... Re2 {[%clk 0:00:11.9]} 24. Rfe1 {[%clk 0:00:22.9]} 24... Rxe1 {[%clk
0:00:03.8]} 25. Rxe1 {[%clk 0:00:21.7]} 25... f6 {[%clk 0:00:04.4]} 26. Qa8+
{[%clk 0:00:19.7]} 26... Kd7 {[%clk 0:00:04.7]} 27. Qf8 {[%clk 0:00:14.7]} 27...
fxg5 {[%clk 0:00:02.4]} 28. Qxg7+ {[%clk 0:00:14.6]} 28... Kc6 {[%clk
0:00:02.2]} 29. Qxc7# {[%clk 0:00:14.3]} 1-0

[Event "Early-Titled-Tuesday-Blitz-April-02-2024"]
[Site "Chess.com"]
[Date "2024.04.02"]
[Round "3"]
[White "chucksterf10"]
[Black "MetiForce"]
[Result "0-1"]
[WhiteElo "2661"]
[BlackElo "2876"]
[TimeControl "180+1"]
[EndTime "8:27:37 PDT"]
[Termination "MetiForce won by checkmate"]

1. e3 {[%clk 0:03:00.9]} 1... e5 {[%clk 0:02:56.5]} 2. d4 {[%clk 0:03:00.8]}
2... e4 {[%clk 0:02:55.9]} 3. c4 {[%clk 0:03:00.8]} 3... f5 {[%clk 0:02:56.3]}
4. Nc3 {[%clk 0:03:00.1]} 4... Nf6 {[%clk 0:02:56.9]} 5. Nge2 {[%clk 0:02:53.1]}
5... c6 {[%clk 0:02:54.1]} 6. Nf4 {[%clk 0:02:48.6]} 6... d5 {[%clk 0:02:54]} 7.
cxd5 {[%clk 0:02:49.5]} 7... cxd5 {[%clk 0:02:54.7]} 8. Qb3 {[%clk 0:02:44.4]}
8... Nc6 {[%clk 0:02:51.4]} 9. Bb5 {[%clk 0:02:38.5]} 9... a6 {[%clk 0:02:42.2]}
10. Bxc6+ {[%clk 0:02:37.8]} 10... bxc6 {[%clk 0:02:43.1]} 11. O-O {[%clk
0:02:34.2]} 11... Bd6 {[%clk 0:02:42.5]} 12. Nce2 {[%clk 0:02:30.9]} 12... O-O
{[%clk 0:02:42.1]} 13. Bd2 {[%clk 0:02:29.1]} 13... g5 {[%clk 0:02:40.9]} 14.
Nh3 {[%clk 0:02:29]} 14... Ng4 {[%clk 0:02:41.2]} 15. f4 {[%clk 0:02:22.9]}
15... exf3 {[%clk 0:02:41.2]} 16. gxf3 {[%clk 0:02:20]} 16... Nxh2 {[%clk
0:02:41.4]} 17. Rf2 {[%clk 0:02:18.3]} 17... g4 {[%clk 0:02:39.8]} 18. Rxh2
{[%clk 0:02:00.8]} 18... Bxh2+ {[%clk 0:02:38.4]} 19. Kxh2 {[%clk 0:02:01.7]}
19... Qh4 {[%clk 0:02:36.9]} 20. Nf4 {[%clk 0:01:58.6]} 20... gxh3 {[%clk
0:02:34.4]} 21. Rg1+ {[%clk 0:01:58.7]} 21... Kh8 {[%clk 0:02:33]} 22. Qb4
{[%clk 0:01:33.1]} 22... Be6 {[%clk 0:02:14.9]} 23. Be1 {[%clk 0:01:25.3]} 23...
Qf6 {[%clk 0:02:13.4]} 24. Qd6 {[%clk 0:01:23.7]} 24... Bg8 {[%clk 0:01:59.4]}
25. Bb4 {[%clk 0:01:17.2]} 25... Rae8 {[%clk 0:01:55.7]} 26. Nd3 {[%clk
0:00:49.9]} 26... f4 {[%clk 0:01:33.3]} 27. Nxf4 {[%clk 0:00:21.2]} 27... a5
{[%clk 0:01:12.2]} 28. Bc5 {[%clk 0:00:20.1]} 28... Rf7 {[%clk 0:00:52.3]} 29.
Re1 {[%clk 0:00:07.2]} 29... Qh4 {[%clk 0:00:41]} 30. Re2 {[%clk 0:00:04.5]}
30... Rxf4 {[%clk 0:00:39.6]} 31. Qd7 {[%clk 0:00:02.8]} 31... Rxe3 {[%clk
0:00:32.3]} 32. Rxe3 {[%clk 0:00:02.3]} 32... Qf2+ {[%clk 0:00:32.9]} 33. Kxh3
{[%clk 0:00:02.8]} 33... Qxe3 {[%clk 0:00:33.7]} 34. Bd6 {[%clk 0:00:02.4]}
34... Rxf3+ {[%clk 0:00:33.8]} 35. Kh2 {[%clk 0:00:01.3]} 35... Qe2+ {[%clk
0:00:33.2]} 36. Kg1 {[%clk 0:00:01.3]} 36... Rf1# {[%clk 0:00:34.1]} 0-1

[Event "Early-Titled-Tuesday-Blitz-April-02-2024"]
[Site "Chess.com"]
[Date "2024.04.02"]
[Round "3"]
[White "ReadySkate"]
[Black "smotherhubbard"]
[Result "1-0"]
[WhiteElo "2601"]
[BlackElo "2356"]
[TimeControl "180+1"]
[EndTime "8:27:37 PDT"]
[Termination "ReadySkate won by resignation"]

1. d4 {[%clk 0:03:00.9]} 1... Nf6 {[%clk 0:02:59.5]} 2. c4 {[%clk 0:03:00.5]}
2... e6 {[%clk 0:02:59.4]} 3. Nc3 {[%clk 0:03:01]} 3... Bb4 {[%clk 0:02:58.6]}
4. f3 {[%clk 0:03:00.7]} 4... d5 {[%clk 0:02:58]} 5. a3 {[%clk 0:03:00.8]} 5...
Be7 {[%clk 0:02:57.5]} 6. e4 {[%clk 0:03:00.2]} 6... dxe4 {[%clk 0:02:57.6]} 7.
fxe4 {[%clk 0:02:58]} 7... e5 {[%clk 0:02:58.1]} 8. d5 {[%clk 0:02:54.2]} 8...
Bc5 {[%clk 0:02:58.6]} 9. Nf3 {[%clk 0:02:53.4]} 9... Bg4 {[%clk 0:02:59]} 10.
Be2 {[%clk 0:02:46.9]} 10... Nbd7 {[%clk 0:02:29.2]} 11. Bg5 {[%clk 0:02:37.5]}
11... a5 {[%clk 0:02:19.6]} 12. Qd2 {[%clk 0:02:35.9]} 12... h6 {[%clk
0:02:12.5]} 13. Be3 {[%clk 0:02:33.7]} 13... Qe7 {[%clk 0:02:04.8]} 14. O-O-O
{[%clk 0:02:31.7]} 14... Bxf3 {[%clk 0:01:34.6]} 15. Bxf3 {[%clk 0:02:26]} 15...
Bxe3 {[%clk 0:01:21.7]} 16. Qxe3 {[%clk 0:02:26.9]} 16... Nc5 {[%clk 0:01:17.5]}
17. Kb1 {[%clk 0:02:23.9]} 17... O-O {[%clk 0:01:09.4]} 18. g4 {[%clk
0:02:22.5]} 18... Ne8 {[%clk 0:01:03.1]} 19. h4 {[%clk 0:02:19.6]} 19... b6
{[%clk 0:00:52.5]} 20. g5 {[%clk 0:02:17.4]} 20... Nd6 {[%clk 0:00:52.3]} 21.
Be2 {[%clk 0:02:11.9]} 21... h5 {[%clk 0:00:47.5]} 22. Bxh5 {[%clk 0:02:11.5]}
22... Nxc4 {[%clk 0:00:46.5]} 23. Qe2 {[%clk 0:02:12.1]} 23... b5 {[%clk
0:00:34.3]} 24. g6 {[%clk 0:02:07.4]} 24... f5 {[%clk 0:00:15.3]} 25. exf5
{[%clk 0:02:03.3]} 25... Nd6 {[%clk 0:00:13.8]} 26. Bf3 {[%clk 0:02:01.2]} 26...
b4 {[%clk 0:00:13.7]} 27. axb4 {[%clk 0:01:57.2]} 27... axb4 {[%clk 0:00:14.6]}
28. Ne4 {[%clk 0:01:55.8]} 28... Ndxe4 {[%clk 0:00:13.2]} 29. Bxe4 {[%clk
0:01:55.9]} 29... Qd7 {[%clk 0:00:13.7]} 30. Qh5 {[%clk 0:01:49]} 30... Rf6
{[%clk 0:00:10.6]} 31. Qh7+ {[%clk 0:01:48.7]} 31... Kf8 {[%clk 0:00:10.4]} 32.
Qh8+ {[%clk 0:01:48.3]} 32... Ke7 {[%clk 0:00:10.8]} 33. Qxg7+ {[%clk
0:01:44.7]} 33... Kd8 {[%clk 0:00:09.7]} 34. Qxf6+ {[%clk 0:01:45.1]} 34... Kc8
{[%clk 0:00:10.1]} 35. Qf8+ {[%clk 0:01:41]} 35... Kb7 {[%clk 0:00:08.2]} 36.
Qxc5 {[%clk 0:01:36.6]} 36... Ra1+ {[%clk 0:00:05.5]} 37. Kxa1 {[%clk
0:01:36.1]} 37... Qa4+ {[%clk 0:00:05.1]} 38. Kb1 {[%clk 0:01:35.1]} 38... b3
{[%clk 0:00:06]} 39. d6+ {[%clk 0:01:32.7]} 39... Qxe4+ {[%clk 0:00:04.1]} 1-0

[Event "Early-Titled-Tuesday-Blitz-April-02-2024"]
[Site "Chess.com"]
[Date "2024.04.02"]
[Round "3"]
[White "diamonds13"]
[Black "zurzan"]
[Result "1-0"]
[WhiteElo "2369"]
[BlackElo "2068"]
[TimeControl "180+1"]
[EndTime "8:27:39 PDT"]
[Termination "diamonds13 won on time"]

1. d4 {[%clk 0:03:00.9]} 1... Nf6 {[%clk 0:02:57.2]} 2. c4 {[%clk 0:03:00.7]}
2... g6 {[%clk 0:02:57.6]} 3. Nc3 {[%clk 0:03:00.8]} 3... Bg7 {[%clk 0:02:57.9]}
4. e4 {[%clk 0:03:00.8]} 4... d6 {[%clk 0:02:58.4]} 5. h3 {[%clk 0:02:58.8]}
5... O-O {[%clk 0:02:58.2]} 6. Be3 {[%clk 0:02:58.8]} 6... c5 {[%clk 0:02:57.6]}
7. d5 {[%clk 0:02:58.4]} 7... e6 {[%clk 0:02:57.2]} 8. Be2 {[%clk 0:02:56.4]}
8... exd5 {[%clk 0:02:57]} 9. exd5 {[%clk 0:02:55.6]} 9... a6 {[%clk 0:02:57.9]}
10. Nf3 {[%clk 0:02:54.5]} 10... Re8 {[%clk 0:02:51.6]} 11. Nd2 {[%clk
0:02:40.6]} 11... Nbd7 {[%clk 0:02:48.6]} 12. O-O {[%clk 0:02:36.6]} 12... Ne5
{[%clk 0:02:47.8]} 13. Bg5 {[%clk 0:02:24.9]} 13... h6 {[%clk 0:02:46]} 14. Bh4
{[%clk 0:02:23.9]} 14... g5 {[%clk 0:02:45.5]} 15. Bg3 {[%clk 0:02:23.9]} 15...
Rb8 {[%clk 0:02:31.2]} 16. f4 {[%clk 0:02:19.2]} 16... gxf4 {[%clk 0:02:19.4]}
17. Bxf4 {[%clk 0:02:19.2]} 17... Ng6 {[%clk 0:02:19.5]} 18. Bg3 {[%clk
0:02:15.5]} 18... b5 {[%clk 0:02:12.8]} 19. cxb5 {[%clk 0:02:11.2]} 19... axb5
{[%clk 0:02:12.8]} 20. Bxb5 {[%clk 0:02:11.2]} 20... Re3 {[%clk 0:02:05]} 21.
Bf2 {[%clk 0:02:03.2]} 21... Rxc3 {[%clk 0:02:04.1]} 22. bxc3 {[%clk 0:02:01.6]}
22... Rxb5 {[%clk 0:02:04.2]} 23. Rb1 {[%clk 0:01:54.6]} 23... Rxb1 {[%clk
0:02:02.8]} 24. Qxb1 {[%clk 0:01:54.7]} 24... Ba6 {[%clk 0:01:59.2]} 25. c4
{[%clk 0:01:54]} 25... Qa5 {[%clk 0:01:46.4]} 26. Qb8+ {[%clk 0:01:49.2]} 26...
Kh7 {[%clk 0:01:45.6]} 27. Be1 {[%clk 0:01:35.6]} 27... Qc3 {[%clk 0:01:36.9]}
28. Qxd6 {[%clk 0:01:33.1]} 28... Qe3+ {[%clk 0:01:36.3]} 29. Bf2 {[%clk
0:01:27.8]} 29... Qxd2 {[%clk 0:01:34.1]} 30. Qxa6 {[%clk 0:01:27.8]} 30... Ne4
{[%clk 0:01:28.7]} 31. Be1 {[%clk 0:01:27.9]} 31... Qd4+ {[%clk 0:01:27.4]} 32.
Kh1 {[%clk 0:01:24.8]} 32... Qe3 {[%clk 0:00:48.3]} 33. Qb6 {[%clk 0:01:01.2]}
33... Nf4 {[%clk 0:00:46.4]} 34. Qb1 {[%clk 0:00:53.8]} 34... Ne2 {[%clk
0:00:42.6]} 35. Bf2 {[%clk 0:00:46.8]} 35... Qf4 {[%clk 0:00:15.2]} 36. Qd3
{[%clk 0:00:45.3]} 36... Be5 {[%clk 0:00:13.3]} 37. g3 {[%clk 0:00:41.1]} 37...
Nxg3+ {[%clk 0:00:12.8]} 38. Bxg3 {[%clk 0:00:38.4]} 38... Qg5 {[%clk
0:00:06.5]} 39. Qxe4+ {[%clk 0:00:37.6]} 1-0